[Event "56th Biel GMT Classical 2023"]
[White "Yu,Yangyi"]
[Black "Deac,Bogdan-Daniel"]
[Site "Biel"]
[Round "3.2"]
[Annotator "TA"]
[Result "1/2-1/2"]
[Date "2023.07.20"]
[WhiteElo "2735"]
[BlackElo "2693"]
[PlyCount "191"]
[TimeControl "60"]

{[%evp 23,191,16,13,2,6,0,23,22,31,20,33,11,64,29,75,85,68,49,52,57,79,77,79,79,77,60,57,62,60,54,69,38,62,36,51,50,51,48,42,37,52,40,43,43,60,39,38,0,60,64,93,71,114,72,137,137,138,138,138,137,137,137,138,138,138,138,140,131,141,141,143,139,146,122,144,137,138,129,133,137,138,144,158,158,158,158,158,158,148,0,130,81,81,81,102,102,102,102,130,122,87,58,65,58,60,57,50,47,68,18,24,8,26,18,18,15,22,8,18,17,143,122,89,28,28,21,21,0,0,0,0,0,0,0,0,0,0,0,0,0,0,0,0,0,0,0,0,0,0,0,0,0,0,0,0,0,0,0,0,0,0,0,0,0,0,0,0,0,0,0]} 1. c4 {[%emt 0:0:34]} Nf6 {[%emt 0:0:7]} 2. d4 {[%emt 0:0:31]} e6 {[%emt 0:0:7]} 3. Nc3 {[%emt 0:0:9]} Bb4 {[%emt 0:0:2]} 4. Nf3 {[%emt 0:0:15]} d5 {[%emt 0:1:43]} 5. e3 {[%emt 0:3:22]} c5 {[%emt 0:2:26]} 6. Bd3 {[%emt 0:4:30]} dxc4 {[%emt 0:5:13]} 7. Bxc4 {[%emt 0:3:6]} Nc6 {[%emt 0:0:3]} 8. O-O {[%emt 0:0:31]} O-O {[%emt 0:0:4]} 9. a3 {[%emt 0:0:52]} Ba5 {[%emt 0:0:2]} 10. Qd3 {[%emt 0:1:9]} a6 {[%emt 0:3:42]} 11. dxc5 {[%emt 0:1:34]} Qxd3 {[%emt 0:7:14]} 12. Bxd3 {[%emt 0:2:13]} Bxc3 {[%emt 0:4:56]} 13. bxc3 {[%emt 0:0:2]} Na5 $1 {[%emt 0:0:26]} 14. Nd2 {[%emt 0:1:19]} Nd7 {[%emt 0:3:35]} 15. c6 {[%emt 0:2:29]} Nxc6 {[%emt 0:11:26]} 16. a4 {[%emt 0:0:18]} Rd8 {[%emt 0:0:57]} 17. Be2 {[%emt 0:1:7]} b6 {[%emt 0:10:25]} (17... Nc5 $11 )18. Nc4 {[%emt 0:18:36]} Na5 {[%emt 0:9:3]} (18... Nce5 $11 )19. Nxa5 $16 {[%emt 0:3:22]} bxa5 {[%emt 0:1:48]} 20. Rd1 {[%emt 0:9:34]} Bb7 {[%emt 0:1:3]} 21. Ba3 {[%emt 0:1:13]} Bc6 {[%emt 0:0:43]} 22. Bd6 {[%emt 0:7:46]} Nb6 {[%emt 0:3:12]} 23. Bc7 {[%emt 0:1:57]} Rxd1+ {[%emt 0:0:36]} 24. Bxd1 {[%emt 0:0:2]} Nc4 {[%emt 0:0:40]} 25. Be2 {[%emt 0:6:44]} Nb2 {[%emt 0:1:24]} 26. Bxa5 {[%emt 0:1:27]} Nxa4 {[%emt 0:0:34]} 27. h4 {[%emt 0:3:29]} h6 {[%emt 0:2:19]} 28. Rd1 {[%emt 0:6:29]} Nc5 {[%emt 0:0:36]} 29. Bb4 {[%emt 0:2:35]} Nb7 {[%emt 0:1:40]} 30. Rb1 {[%emt 0:4:23]} a5 {[%emt 0:2:9]} 31. Ba3 {[%emt 0:1:22]} a4 {[%emt 0:0:4]} 32. Rb6 {[%emt 0:0:31]} Na5 {[%emt 0:3:28]} 33. c4 {[%emt 0:1:26]} Rc8 {[%emt 0:0:7]} 34. Ra6 {[%emt 0:1:33]} Ra8 $1 {[%emt 0:0:45]} 35. Rb6 {[%emt 0:1:28]} Rc8 {[%emt 0:1:21]} 36. f3 {[%emt 0:2:9]} e5 {[%emt 0:18:50]} 37. Kf2 {[%emt 0:3:3]} f6 {[%emt 0:7:10]} 38. Bd3 {[%emt 0:3:49]} Bd7 {[%emt 0:2:40]} ({Black should try} 38... e4 39. Be2 (39. Bxe4 $2 {perishes.} Bxe4 40. Ra6 Ra8 $19 )(39. fxe4 Rd8 $11 )Kh7 )39. c5 $1 $16 {[%emt 0:0:58]} Kf7 {[%emt 0:0:43]} 40. Ra6 $1 {[%emt 0:0:0]} Nc6 {[%emt 0:0:0]} 41. Rxa4 {[%emt 0:8:39]} Ke8 {[%emt 0:2:51]} 42. h5 {[%emt 0:10:57]} Rb8 {[%emt 0:0:6]} 43. Ra6 {[%emt 0:1:46]} Kd8 {[%emt 0:0:1]} 44. Be4 {[%emt 0:1:0]} Kc7 {[%emt 0:0:1]} 45. Ke1 {[%emt 0:4:7]} f5 {[%emt 0:0:24]} 46. Bc2 {[%emt 0:5:58]} Bc8 {[%emt 0:0:16]} 47. Ra4 {[%emt 0:4:47]} Be6 {[%emt 0:0:4]} 48. Kd2 {[%emt 0:4:0]} Bb3 {[%emt 0:0:5] [#]} 49. Bxb3 $1 {[%emt 0:2:20]} Rxb3 {[%emt 0:0:8] [#]} 50. Bc1 $1 {[%emt 0:0:5]} Rb5 {[%emt 0:0:16]} 51. Ra8 {[%emt 0:3:13]} Rxc5 {[%emt 0:2:4]} 52. Rg8 {[%emt 0:1:36]} Rd5+ {[%emt 0:1:38]} 53. Ke2 {[%emt 0:0:33]} Rd7 {[%emt 0:0:6]} 54. Ba3 {[%emt 0:0:28]} Nd8 {[%emt 0:1:37]} 55. Re8 {[%emt 0:0:39]} Nc6 {[%emt 0:1:32]} 56. Rg8 {[%emt 0:2:3]} Nd8 $1 {[%emt 0:2:27]} 57. Bb4 {[%emt 0:0:28]} (57. Rf8 $142 )Kc6 $16 {[%emt 0:1:44]} 58. Ba5 {[%emt 0:4:45]} Nb7 {[%emt 0:8:11]} 59. Bc3 {[%emt 0:0:19]} Re7 {[%emt 0:0:8]} 60. Bb4 {[%emt 0:0:0]} Nd6 {[%emt 0:0:0]} 61. Ra8 {[%emt 0:5:48]} Rd7 {[%emt 0:10:56]} 62. Ra5 {[%emt 0:2:42]} Nb5 {[%emt 0:2:29]} 63. Kf2 {[%emt 0:3:52]} Rf7 {[%emt 0:8:8]} 64. Kg1 {[%emt 0:2:7]} Rb7 {[%emt 0:12:29]} 65. Kh2 {[%emt 0:0:53]} Kd5 {[%emt 0:2:5]} 66. Bf8 {[%emt 0:2:41]} (66. Bc3 $14 )Kc4 $11 {[%emt 0:0:10]} 67. Kg1 {[%emt 0:4:26]} Rf7 {[%emt 0:1:21]} 68. Ra8 {[%emt 0:0:3]} Nc3 {[%emt 0:20:31]} 69. Bd6 {[%emt 0:0:39]} e4 {[%emt 0:1:47]} 70. Be5 {[%emt 0:1:30]} Nd1 {[%emt 0:1:5]} 71. Ra3 {[%emt 0:3:31]} exf3 {[%emt 0:1:32]} (71... Kb4 $11 {keeps the balance.} 72. Ra8 (72. Bd6+ Kc4 $14 )Nxe3 )72. gxf3 $16 {[%emt 0:0:3]} Rb7 {[%emt 0:0:52]} 73. f4 {[%emt 0:1:11]} (73. Kg2 $16 )Nb2 $1 $11 {[%emt 0:0:23]} 74. Kg2 {[%emt 0:2:59]} Kd5 $1 {[%emt 0:0:14]} 75. Ra5+ {[%emt 0:1:15]} Ke4 {[%emt 0:1:1]} 76. Bxb2 {[%emt 0:0:3]} Rxb2+ {[%emt 0:0:4]} 77. Kg3 {[%emt 0:0:1]} Kxe3 {[%emt 0:0:10]} 78. Rxf5 {[%emt 0:0:3]} Rb7 {[%emt 0:1:23]} 79. Kg4 {[%emt 0:0:10]} Kd4 {[%emt 0:0:43]} 80. Ra5 {[%emt 0:0:23]} Rf7 {[%emt 0:0:17]} 81. Re5 {[%emt 0:0:2]} Kd3 {[%emt 0:0:42]} 82. Kg3 {[%emt 0:0:16]} Kd4 {[%emt 0:0:17]} 83. Kf3 {[%emt 0:0:13]} Ra7 {[%emt 0:0:22]} 84. Kg4 $1 {[%emt 0:1:19]} Rf7 {[%emt 0:0:16]} 85. Kg3 {[%emt 0:1:59]} Ra7 {[%emt 0:0:57]} 86. Kf3 {[%emt 0:0:3]} Rf7 {[%emt 0:0:37]} 87. Kg4 {[%emt 0:0:0]} Kd3 {[%emt 0:0:11]} 88. f5 {[%emt 0:0:9]} Kd4 {[%emt 0:0:28]} 89. Kf4 {[%emt 0:0:3]} Ra7 {[%emt 0:0:43]} 90. Re8 {[%emt 0:0:9]} Kd5 {[%emt 0:0:32]} 91. Rd8+ {[%emt 0:0:1]} Kc6 {[%emt 0:0:8]} 92. Rd1 {[%emt 0:1:33]} Re7 {[%emt 0:0:24]} 93. Rd2 {[%emt 0:0:51]} Kc7 {[%emt 0:0:7]} 94. f6 {[%emt 0:1:4]} gxf6 {[%emt 0:0:4]} 95. Kf5 {[%emt 0:0:20]} Rg7 {[%emt 0:0:8]} 96. Kxf6 {[%emt 0:0:14]} 1/2-1/2

[Event "56th Biel GMT Classical 2023"]
[White "Navara,David"]
[Black "Moussard,Jules"]
[Site "Biel"]
[Round "3.3"]
[Annotator "TA"]
[Result "1/2-1/2"]
[Date "2023.07.20"]
[WhiteElo "2689"]
[BlackElo "2654"]
[PlyCount "189"]
[TimeControl "60"]

{[%evp 24,189,39,16,14,18,2,7,8,22,16,11,4,4,4,4,4,4,4,4,4,4,4,0,0,0,0,0,0,0,0,-3,-3,-8,0,0,0,0,0,0,0,0,0,0,7,0,0,0,0,0,0,0,8,0,12,12,12,0,0,0,12,12,12,12,28,28,28,29,29,8,8,8,8,8,21,8,8,8,8,8,29,29,29,29,33,22,29,29,37,8,8,8,8,8,8,8,8,0,8,8,8,8,52,52,52,52,52,52,52,52,52,52,52,52,52,52,52,0,0,0,0,0,0,0,0,0,0,0,0,0,0,0,0,0,0,0,8,0,0,0,0,0,0,0,0,0,0,0,0,0,0,0,0,0,0,0,0,0,8,0,0,0,8,8,8,8,8,8]} 1. Nf3 {[%emt 0:0:2]} Nf6 {[%emt 0:0:25]} 2. c4 {[%emt 0:0:3]} e6 {[%emt 0:0:49]} 3. g3 {[%emt 0:0:4]} d5 {[%emt 0:0:28]} 4. Bg2 {[%emt 0:0:4]} Be7 {[%emt 0:0:47]} 5. O-O {[%emt 0:0:6]} O-O {[%emt 0:0:7]} 6. d4 {[%emt 0:0:6]} dxc4 {[%emt 0:0:44]} 7. Qc2 {[%emt 0:0:5]} c6 {[%emt 0:0:16]} 8. Qxc4 {[%emt 0:4:14]} b5 {[%emt 0:0:7]} 9. Qc2 {[%emt 0:0:18]} Bb7 {[%emt 0:0:32]} 10. Rd1 {[%emt 0:1:44]} Nbd7 {[%emt 0:0:58]} 11. Bg5 {[%emt 0:3:9]} Qb6 {[%emt 0:8:58]} 12. Nbd2 {[%emt 0:19:53]} Rfd8 {[%emt 0:22:58]} 13. a4 {[%emt 0:13:40]} c5 {[%emt 0:16:4]} 14. axb5 {[%emt 0:5:43]} Qxb5 {[%emt 0:2:43]} 15. Qb3 {[%emt 0:1:35]} Qxb3 {[%emt 0:3:29]} 16. Nxb3 {[%emt 0:0:13]} Bd5 {[%emt 0:2:36]} 17. Nxc5 {[%emt 0:1:40]} Nxc5 {[%emt 0:0:17]} 18. dxc5 {[%emt 0:0:9]} Bxc5 {[%emt 0:0:27]} 19. Ne5 {[%emt 0:1:36]} Bxg2 {[%emt 0:8:32]} 20. Rxd8+ {[%emt 0:1:10]} Rxd8 {[%emt 0:0:7]} 21. Kxg2 {[%emt 0:0:9]} Rd5 {[%emt 0:3:58]} 22. Bxf6 {[%emt 0:0:52]} gxf6 {[%emt 0:0:3]} 23. Nd3 {[%emt 0:1:44]} Bb6 {[%emt 0:0:21]} 24. Rc1 {[%emt 0:3:34]} f5 {[%emt 0:2:21]} 25. h3 {[%emt 0:6:15]} Kg7 {[%emt 0:4:46]} 26. Rc8 {[%emt 0:2:23]} Rb5 {[%emt 0:5:11]} 27. Rb8 {[%emt 0:2:51]} e5 {[%emt 0:3:3]} 28. g4 {[%emt 0:4:20]} Kf6 {[%emt 0:5:12]} 29. b4 {[%emt 0:8:33]} e4 {[%emt 0:3:24]} 30. Nf4 {[%emt 0:2:58]} fxg4 {[%emt 0:1:5]} (30... Rxb4 $2 31. Nd5+ Ke6 32. Nxb4 $18 )31. hxg4 {[%emt 0:0:8]} Kg5 {[%emt 0:4:19]} (31... Rxb4 $2 32. Nd5+ Ke6 33. Nxb4 $18 )32. e3 {[%emt 0:1:2]} Kxg4 {[%emt 0:0:11]} 33. Rb7 {[%emt 0:5:2]} Rf5 {[%emt 0:6:56]} 34. Ne2 {[%emt 0:3:27]} Rb5 {[%emt 0:2:51]} 35. Rxf7 {[%emt 0:0:53]} Rxb4 {[%emt 0:0:6]} 36. Nc3 {[%emt 0:5:26]} Kg5 {[%emt 0:0:42]} 37. Rxh7 {[%emt 0:0:37]} Kf5 {[%emt 0:0:41]} 38. Kg3 {[%emt 0:2:51]} Rc4 {[%emt 0:0:32]} 39. Nb5 {[%emt 0:3:4]} Rc1 {[%emt 0:0:52]} 40. Rh5+ {[%emt 0:0:0]} Ke6 {[%emt 0:0:0]} 41. Kf4 {[%emt 0:3:28]} Rf1 {[%emt 0:5:58]} 42. Rh6+ {[%emt 0:4:12]} Ke7 {[%emt 0:2:45]} 43. Kg3 {[%emt 0:2:43]} Bxe3 {[%emt 0:3:14]} 44. fxe3 {[%emt 0:0:12]} Rf3+ {[%emt 0:0:4]} 45. Kg4 {[%emt 0:0:7]} Rxe3 {[%emt 0:0:7]} 46. Kf5 {[%emt 0:0:33]} Rf3+ {[%emt 0:0:10]} 47. Ke5 {[%emt 0:1:26]} e3 {[%emt 0:2:23]} 48. Nd4 {[%emt 0:0:16]} (48. Nxa7 $2 {is the wrong capture.} e2 49. Nc8+ Kf8 50. Rh8+ Kg7 $19 )Rf7 {[%emt 0:0:28]} 49. Nf5+ {[%emt 0:1:47]} Kd7 {[%emt 0:0:30]} 50. Nxe3 {[%emt 0:0:9]} Re7+ {[%emt 0:0:10]} 51. Kd4 {[%emt 0:0:4]} Re6 {[%emt 0:0:15]} 52. Rh7+ {[%emt 0:0:5]} Re7 {[%emt 0:0:4]} 53. Rh5 {[%emt 0:0:26]} Re6 {[%emt 0:0:11]} 54. Nd5 {[%emt 0:0:19]} Re1 {[%emt 0:0:12]} 55. Rh7+ {[%emt 0:0:18]} Kd6 {[%emt 0:0:9]} 56. Rxa7 {[%emt 0:0:8]} Rd1+ {[%emt 0:0:11]} 57. Ke4 {[%emt 0:0:4]} Re1+ {[%emt 0:0:8]} 58. Ne3 {[%emt 0:0:4]} Re2 {[%emt 0:0:31]} 59. Ra3 {[%emt 0:0:28]} Re1 {[%emt 0:0:25]} 60. Kd4 {[%emt 0:0:0]} Re2 {[%emt 0:0:0]} 61. Ra6+ {[%emt 0:0:22]} Ke7 {[%emt 0:0:31]} 62. Nd5+ $1 {[%emt 0:1:10]} Kf7 {[%emt 0:0:7]} 63. Ra7+ {[%emt 0:0:4]} Kf8 {[%emt 0:0:13]} 64. Nf4 {[%emt 0:0:22]} Re1 {[%emt 0:0:7]} 65. Kd5 {[%emt 0:0:10]} Ke8 {[%emt 0:0:24]} 66. Kd6 {[%emt 0:0:14]} Rd1+ {[%emt 0:1:6]} 67. Nd5 {[%emt 0:0:27]} Rd2 {[%emt 0:1:1]} 68. Re7+ {[%emt 0:2:37]} Kf8 {[%emt 0:0:17]} 69. Rb7 {[%emt 0:2:11]} Rd1 {[%emt 0:0:23]} 70. Rb3 {[%emt 0:1:14]} (70. Ke5 $14 )Kf7 $11 {[%emt 0:0:30]} 71. Rf3+ {[%emt 0:0:13]} Kg6 {[%emt 0:0:14]} 72. Ke6 {[%emt 0:0:27]} Re1+ {[%emt 0:0:57]} 73. Ne3 {[%emt 0:0:14]} Kg5 {[%emt 0:0:19]} 74. Ke5 {[%emt 0:0:22]} Kg6 {[%emt 0:0:10]} 75. Ke6 {[%emt 0:0:48]} Kg5 {[%emt 0:0:4]} 76. Kf7 {[%emt 0:0:4]} Ra1 {[%emt 0:0:32]} 77. Rf5+ {[%emt 0:0:13]} Kh4 {[%emt 0:0:6]} 78. Kf6 {[%emt 0:0:11]} Ra6+ {[%emt 0:0:14]} 79. Ke5 {[%emt 0:0:6]} Ra5+ {[%emt 0:0:5]} 80. Nd5 {[%emt 0:0:5]} Kg4 {[%emt 0:0:14]} 81. Rf4+ {[%emt 0:0:10]} Kg3 {[%emt 0:0:7]} 82. Rb4 {[%emt 0:0:19]} Kf3 {[%emt 0:0:13]} 83. Rb3+ {[%emt 0:0:4]} Kg4 {[%emt 0:0:9]} 84. Rc3 {[%emt 0:0:36]} Rb5 {[%emt 0:0:15]} 85. Ra3 {[%emt 0:0:58]} Kh4 {[%emt 0:2:41]} 86. Ke4 {[%emt 0:0:23]} Kg4 {[%emt 0:0:41]} 87. Ra7 {[%emt 0:1:15]} Kg3 {[%emt 0:0:31]} 88. Rg7+ {[%emt 0:0:9]} Kf2 {[%emt 0:0:13]} 89. Rf7+ {[%emt 0:0:7]} Kg3 {[%emt 0:0:10]} 90. Rf3+ {[%emt 0:0:53]} Kg4 {[%emt 0:0:13]} 91. Rf5 {[%emt 0:0:7]} Kg3 {[%emt 0:0:36]} 92. Rf3+ {[%emt 0:1:28]} Kg4 {[%emt 0:0:11]} 93. Ne3+ {[%emt 0:0:4]} Kg5 {[%emt 0:0:35]} 94. Rf5+ {[%emt 0:0:4]} Rxf5 {[%emt 0:0:6]} 95. Nxf5 {[%emt 0:0:4]} 1/2-1/2

[Event "56th Biel GMT Classical 2023"]
[White "Amin,Bassem"]
[Black "Erigaisi Arjun"]
[Site "Biel"]
[Round "3.4"]
[Annotator "TA"]
[Result "1-0"]
[Date "2023.07.20"]
[WhiteElo "2694"]
[BlackElo "2710"]
[PlyCount "109"]
[TimeControl "60"]

{[%evp 19,109,0,0,-20,0,-8,0,0,0,0,0,0,21,4,35,24,45,49,53,52,131,132,129,128,121,113,115,122,181,176,180,172,166,166,174,182,236,225,235,239,225,240,331,323,349,326,485,489,489,489,481,481,457,0,361,0,285,282,267,287,276,279,273,282,283,258,257,262,263,249,347,327,471,449,445,385,422,452,439,432,397,361,635,576,1478,1694,1548,1418,5289,2779,29981,29982]} 1. Nf3 {[%emt 0:1:29]} d5 {[%emt 0:0:8]} 2. g3 {[%emt 0:0:37]} Nf6 {[%emt 0:0:6]} 3. Bg2 {[%emt 0:0:8]} e6 {[%emt 0:0:6]} 4. O-O {[%emt 0:0:7]} Be7 {[%emt 0:0:4]} 5. d3 {[%emt 0:0:54]} O-O {[%emt 0:0:7]} 6. Nbd2 {[%emt 0:0:38]} c5 {[%emt 0:0:7]} 7. e4 {[%emt 0:0:5]} Nc6 {[%emt 0:0:4]} 8. Re1 {[%emt 0:0:7]} dxe4 {[%emt 0:0:15]} 9. dxe4 {[%emt 0:3:46]} e5 {[%emt 0:0:13]} 10. c3 {[%emt 0:3:17]} Qc7 {[%emt 0:0:19]} 11. h3 {[%emt 0:22:45] C00: French: Unusual White 2nd moves.} Rd8 {[%emt 0:1:25]} 12. Qe2 {[%emt 0:1:33]} h6 {[%emt 0:0:46]} 13. Nh4 {[%emt 0:0:35] The position is equal.} Be6 {[%emt 0:5:30]} 14. Nc4 {[%emt 0:6:51][%cal Bd2c4,Bc4e3,Be3f5][%mdl 32]} b5 {[%emt 0:27:25]} 15. Ne3 {[%emt 0:0:57]} Rab8 {[%emt 0:0:50]} 16. Nhf5 {[%emt 0:3:28][%cal Oe3d5] [#]} Bf8 $146 {[%emt 0:11:53]} ({Predecessor:} 16... b4 17. Ng4 Kh7 18. Nxf6+ Bxf6 19. Qh5 Kg8 20. Qf3 Bxf5 {½-½ Gonzalez Custodio,R (2188)-Santos Santos,P (2167) ESP-chT Div 2 1999 (7)} )17. Qf3 {[%emt 0:2:20][%cal Of5h6]} Bxf5 {[%emt 0:5:34]} 18. Nxf5 {[%emt 0:2:54]} Rb6 {[%emt 0:0:5]} 19. a4 {[%emt 0:7:30]} Ne7 {[%emt 0:9:32]} (19... a6 $14 )20. axb5 $16 {[%emt 0:2:31]} Nxf5 {[%emt 0:0:7]} 21. exf5 {[%emt 0:8:45]} Rxb5 {[%emt 0:3:42]} 22. Qc6 {[%emt 0:4:22]} Qb8 {[%emt 0:5:26] Black is weak on the light squares} 23. Rxa7 {[%emt 0:7:0][%mdl 64] Deflection. White has more active pieces.} Rxb2 {[%emt 0:0:13] [#]} (23... Qxa7 $16 24. Qxb5 e4 )24. Rxf7 $3 $18 {[%emt 0:1:51][%mdl 576] Remove Defender} Rb6 {[%emt 0:0:8]} 25. Rb7 {[%emt 0:3:36]} Rxb7 {[%emt 0:1:46]} 26. Qxb7 {[%emt 0:0:8]} Qxb7 {[%emt 0:0:5]} 27. Bxb7 {[%emt 0:0:2]} Rd3 {[%emt 0:0:7]} (27... Rb8 $142 )28. c4 {[%emt 0:2:11]} (28. Rxe5 $2 {is the wrong capture.} Rd1+ 29. Kg2 Rxc1 $19 )Bd6 {[%emt 0:0:9]} 29. Bc8 {[%emt 0:3:46]} e4 {[%emt 0:0:8]} 30. Be3 {[%emt 0:2:50]} Kf7 {[%emt 0:1:13]} 31. Be6+ {[%emt 0:3:18]} Ke8 {[%emt 0:0:6]} 32. Ra1 {[%emt 0:1:0] Repels Ra3. Strongly threatening Ra8+.} Bxg3 {[%emt 0:0:45]} (32... Be5 {might work better.} )33. Ra8+ {[%emt 0:2:52]} Ke7 {[%emt 0:0:6]} 34. Bxc5+ {[%emt 0:0:22] A strong pair of Bishops.} Bd6 {[%emt 0:0:6]} 35. Ra7+ {[%emt 0:2:56]} Kf8 {[%emt 0:0:7]} 36. Ra8+ {[%emt 0:3:12]} Ke7 $1 {[%emt 0:0:7]} 37. Ra7+ {[%emt 0:4:55]} Kf8 {[%emt 0:0:6]} 38. Bxd6+ {[%emt 0:2:44]} Rxd6 {[%emt 0:0:6][%mdl 4096] Endgame KRB-KRN} 39. Rf7+ {[%emt 0:0:25]} Ke8 {[%emt 0:0:5]} 40. Rxg7 {[%emt 0:0:0]} Rd1+ {[%emt 0:0:0]} 41. Kg2 {[%emt 0:2:12]} Rd2 {[%emt 0:1:50]} 42. Kf1 {[%emt 0:2:38] Black must now prevent Ke1.} Rc2 {[%emt 0:0:41]} 43. Ke1 {[%emt 0:2:43] aiming for Kd1.} Nh5 {[%emt 0:1:56]} 44. Rg4 {[%emt 0:1:12]} Ke7 {[%emt 0:0:19]} 45. Rxe4 {[%emt 0:2:12]} Kf6 {[%emt 0:0:6]} (45... Ng7 $142 46. Re2 Rc3 )46. Rh4 {[%emt 0:0:53]} Kg5 {[%emt 0:0:8]} 47. Rg4+ {[%emt 0:1:56]} Kf6 {[%emt 0:0:7]} 48. f3 {[%emt 0:25:43]} Ke5 {[%emt 0:2:31]} 49. Re4+ {[%emt 0:0:19]} Kf6 {[%emt 0:0:6]} 50. Rh4 {[%emt 0:0:33]} Ng3 {[%emt 0:1:56] [#]} (50... Kg5 )51. Rxh6+ {[%emt 0:3:26]} Kg5 {[%emt 0:0:6]} 52. Rg6+ {[%emt 0:0:18]} Kf4 {[%emt 0:0:5]} 53. Kd1 {[%emt 0:0:2]} Rf2 {[%emt 0:0:8]} 54. Rg4+ {[%emt 0:0:19]} Kxf3 {[%emt 0:0:10]} 55. Bd5+ {[%emt 0:0:8] Excellently played by Amin!   Weighted Error Value: White=0.24 (precise) /Black=0.43} 1-0

[Event "56th Biel GMT Classical 2023"]
[White "Le,Quang Liem"]
[Black "Erigaisi Arjun"]
[Site "Biel"]
[Round "4.1"]
[Annotator "TA"]
[Result "1-0"]
[Date "2023.07.21"]
[WhiteElo "2728"]
[BlackElo "2710"]
[PlyCount "83"]
[TimeControl "60"]

{[%evp 9,83,3,17,8,27,13,16,15,4,0,0,-10,18,-1,0,-14,32,5,18,6,14,0,68,75,62,50,61,62,55,54,88,39,32,41,43,36,43,44,61,53,64,0,0,0,72,63,85,76,88,14,171,172,171,159,201,209,204,197,188,24,295,205,304,304,478,464,765,710,964,952,950,934,1602,868,1842,1770]} 1. d4 {[%emt 0:0:4]} Nf6 {[%emt 0:0:43]} 2. Nf3 {[%emt 0:0:18]} d5 {[%emt 0:0:7]} 3. c4 {[%emt 0:0:15]} e6 {[%emt 0:0:5]} 4. Nc3 {[%emt 0:0:13]} Nbd7 {[%emt 0:0:7]} 5. cxd5 {[%emt 0:0:36]} exd5 {[%emt 0:0:5]} 6. Qc2 {[%emt 0:0:40] D35: Queen's Gambit Declined: Exchange Variation.} Bb4 {[%emt 0:0:34]} 7. a3 $5 {[%emt 0:0:53][%mdl 4] A promising side line.} Bxc3+ {[%emt 0:0:6]} 8. bxc3 {[%emt 0:0:10] The position is equal.} c5 {[%emt 0:1:38]} 9. e3 {[%emt 0:3:20]} O-O {[%emt 0:4:58]} 10. Be2 $5 {[%emt 0:1:34][%mdl 4] Exploring less charted territory.} Qc7 {[%emt 0:1:50] [#]} 11. a4 $146 {[%emt 0:5:54]} ({Predecessor:} 11. O-O b6 12. a4 Re8 13. a5 Bb7 14. Bb2 Rac8 15. axb6 axb6 16. Rfb1 Ne4 17. Bd3 {0-1 Kuzubov,Y (2640)-Efimenko,Z (2647) UKR-ch Lvov 2015 (5)} )c4 {[%emt 0:2:17]} 12. Nd2 {[%emt 0:6:5]} b6 {[%emt 0:2:57]} (12... Re8 $11 )13. O-O {[%emt 0:3:15]} Re8 {[%emt 0:1:58]} 14. Re1 {[%emt 0:0:10]} Bb7 {[%emt 0:5:6]} 15. Nf1 {[%emt 0:0:50]} a6 {[%emt 0:8:4]} (15... Nb8 $11 )16. f3 $14 {[%emt 0:3:30]} b5 {[%emt 0:2:4]} 17. Ba3 {[%emt 0:3:34]} bxa4 {[%emt 0:6:23]} 18. Qxa4 {[%emt 0:0:18]} Bc6 {[%emt 0:0:6]} 19. Qc2 {[%emt 0:1:5]} a5 {[%emt 0:0:42]} 20. Reb1 {[%emt 0:3:51]} (20. Bd1 $16 )Nb6 {[%emt 0:12:10]} 21. Qd2 {[%emt 0:5:53]} Nc8 {[%emt 0:1:26]} 22. Bd1 {[%emt 0:15:2]} Nd6 {[%emt 0:1:26]} 23. Ng3 {[%emt 0:0:17]} Re6 {[%emt 0:5:51]} 24. Bc2 {[%emt 0:1:34]} g6 {[%emt 0:2:40]} 25. Bc5 {[%emt 0:6:15]} (25. Bc1 $14 )Nb7 $11 {[%emt 0:10:36]} 26. Ba3 {[%emt 0:0:25]} Rae8 {[%emt 0:2:9]} (26... Nd6 $11 )27. Re1 $16 {[%emt 0:1:24]} h5 {[%emt 0:3:9]} 28. Re2 {[%emt 0:0:43]} a4 {[%emt 0:4:9]} 29. Rae1 {[%emt 0:14:42]} (29. Nh1 $16 )Na5 $2 {[%emt 0:5:49]} (29... h4 $11 {and Black has nothing to worry.} 30. Nh1 Na5 )30. e4 $18 {[%emt 0:1:3]} dxe4 {[%emt 0:4:18]} 31. Nxe4 {[%emt 0:3:59]} (31. Bxe4 $6 Nb3 32. Qg5 (32. Qh6 Bxe4 33. Nxe4 Rxe4 $16 )Bxe4 $16 )Bxe4 {[%emt 0:2:19]} 32. fxe4 {[%emt 0:0:8][%cal Bf3e4,Be4e5][%mdl 32]} (32. Bxe4 $6 Qd8 $14 )Nb3 {[%emt 0:0:20] [#]} (32... Ng4 $2 33. e5 $18 (33. Bxa4 $2 {is a self mate.} Qxh2+ 34. Kf1 Qh1# ))33. Qg5 {[%emt 0:0:37]} ({Inferior is} 33. Bxb3 cxb3 34. Qd3 Rc6 $17 )Qb7 {[%emt 0:1:28][%cal Rf6e4] [#]} 34. Qf4 {[%emt 0:4:10]} (34. e5 $1 $18 {[%cal Oc2g6] Strongly threatening Bxg6!} Nd5 35. Be4 )Kg7 {[%emt 0:1:51][%mdl 8192]} (34... Nd5 $1 $11 35. Qf3 (35. exd5 $2 {perishes.} Rxe2 36. Rxe2 {[%mdl 64] Remove Defender} Rxe2 $19 )Nc7 )35. Qf3 {[%emt 0:2:31]} Nh7 {[%emt 0:1:45]} (35... Kg8 {might work better.} 36. d5 Ra6 )36. Qg3 {[%emt 0:1:47]} Nf6 {[%emt 0:2:53]} (36... f5 {was necessary.} 37. e5 Kh8 )37. e5 {[%emt 0:0:29] White is clearly winning.} Nd5 {[%emt 0:0:6]} (37... Ng8 $142 38. Rf1 Rd8 )38. Rf2 {[%emt 0:2:34]} R8e7 {[%emt 0:2:35]} 39. Ref1 {[%emt 0:0:53]} Rd7 {[%emt 0:0:47]} 40. Be4 {[%emt 0:0:0]} Kg8 {[%emt 0:0:0]} 41. Qf3 {[%emt 0:7:2]} Re8 {[%emt 0:1:37]} 42. Bd6 {[%emt 0:0:49] Weighted Error Value: White=0.24 (precise) /Black=0.47} 1-0